fUST/lending_fUST_20251207
["ID","MTS","AMOUNT","RATE_DAILY","PERIOD"]
[396750080,1765102510419,1106.73934423,5.093e-05,2]
[396750081,1765102562367,300.0,5.095e-05,2]
[396750082,1765102622400,300.0,5.095e-05,2]
[396750083,1765102682453,300.0,5.095e-05,2]
[396750084,1765102729814,4029.58878496,4.996e-05,2]
[396750085,1765102729841,10000.01,4.996e-05,2]
[396750086,1765102729864,10000.01,4.996e-05,2]
[396750087,1765102729888,10000.01,4.996e-05,2]
[396750088,1765102729913,10000.01,4.996e-05,2]
[396750089,1765102729936,10000.01,4.996e-05,2]
[396750090,1765102729961,10000.01,4.996e-05,2]
[396750091,1765102729986,10000.01,4.996e-05,2]
[396750092,1765102730011,10000.01,4.996e-05,2]
[396750093,1765102730035,10000.01,4.996e-05,2]
[396750094,1765102730060,6537.40457283,4.996e-05,2]
[396750095,1765102730081,30000.0,4.996e-05,2]
[396750096,1765102730103,30000.0,4.996e-05,2]
[396750097,1765102730124,30000.0,4.996e-05,2]
[396750098,1765102730146,30000.0,4.996e-05,2]
[396750099,1765102730167,30000.0,4.996e-05,2]
[396750100,1765102730188,30000.0,4.996e-05,2]
[396750101,1765102737746,-453.56366183,4.996e-05,2]
[396750102,1765102741110,-247.16595522,4.996e-05,2]
[396750104,1765102744186,-220.46077197,4.995e-05,2]
[396750105,1765102745909,-79.53922803,4.995e-05,2]
[396750106,1765102745939,-194.31825186,4.996e-05,2]
[396750107,1765102748980,-185.07562662,4.996e-05,2]
[396750108,1765102750633,-377.64704026,4.996e-05,2]
[396750109,1765102753891,-305.55076006,4.996e-05,2]
[396750110,1765102757281,-535.42832318,4.996e-05,2]
[396750111,1765102758831,-151.0,4.996e-05,2]
[396750112,1765102761605,-535.78890942,4.996e-05,2]
[396750113,1765102764254,-157.80546858,4.996e-05,2]
[396750114,1765102765773,-186.78206719,4.996e-05,2]
[396750115,1765102769144,-166.21,4.996e-05,2]
[396750116,1765102771805,-214.28126907,4.996e-05,2]
[396750117,1765102774991,-278.43984847,4.996e-05,2]
[396750118,1765102778975,-283.52142929,4.996e-05,2]
[396750119,1765102782622,-249.4444737,4.996e-05,2]
[396750120,1765102784203,-233.71350141,4.996e-05,2]
[396750121,1765102786561,-356.83823712,4.996e-05,2]
[396750122,1765102788696,-231.27292231,4.996e-05,2]
[396750123,1765102792718,-242.3284504,4.996e-05,2]
[396750124,1765102794276,-238.54535141,4.996e-05,2]
[396750125,1765102797028,-189.99216055,4.996e-05,2]
[396750126,1765102798775,-430.07419803,4.996e-05,2]
[396750127,1765102802521,300.0,4.995e-05,2]
[396750128,1765102803255,-151.21737776,4.996e-05,2]
[396750129,1765102804788,-216.31613339,4.996e-05,2]
[396750130,1765102806429,-165.0719411,4.996e-05,2]
[396750131,1765102808788,1200.0,4.995e-05,2]
[396750132,1765102809641,-167.10304902,4.996e-05,2]
[396750133,1765102814112,-211.0908018,4.996e-05,2]
[396750134,1765102816196,-309.55046549,4.996e-05,2]
[396750135,1765102820706,-513.76655817,4.996e-05,2]
[396750136,1765102824285,-371.06659024,4.996e-05,2]
[396750137,1765102825887,-378.49379308,4.996e-05,2]
[396750138,1765102828148,-176.32020411,4.996e-05,2]
[396750139,1765102832287,-433.23404987,4.996e-05,2]
[396750140,1765102834288,-316.14918261,4.996e-05,2]
[396750141,1765102835483,-219.16497994,4.996e-05,2]
[396750142,1765102836885,-350.72220317,4.996e-05,2]
[396750143,1765102838487,-186.32030897,4.996e-05,2]
[396750144,1765102840590,-214.86638172,4.996e-05,2]
[396750145,1765102845048,-277.91015139,4.996e-05,2]
[396750146,1765102848547,-157.90039857,4.996e-05,2]
[396750147,1765102852206,-299.04502074,4.996e-05,2]
[396750148,1765102855627,-196.80918333,4.996e-05,2]
[396750149,1765102858485,-294.37669357,4.996e-05,2]
[396750150,1765102860601,-287.86783038,4.996e-05,2]
[396750151,1765102863980,-348.73128974,4.996e-05,2]
[396750152,1765102865654,-292.39362416,4.996e-05,2]
[396750153,1765102867803,-168.89779705,4.996e-05,2]
[396750154,1765102871260,-194.61801414,4.996e-05,2]
[396750155,1765102873898,-500.0,4.996e-05,2]
[396750156,1765102877195,-205.85596972,4.996e-05,2]
[396750157,1765102878739,-308.83111444,4.996e-05,2]
[396750158,1765102880785,-184.97312584,4.996e-05,2]
[396750159,1765102884719,-203.36951046,4.996e-05,2]
[396750160,1765102888138,-207.22561882,4.996e-05,2]
[396750161,1765102890852,-319.64084889,4.996e-05,2]
[396750162,1765102892528,-286.49077375,4.996e-05,2]
[396750163,1765102894343,-236.71399754,4.996e-05,2]
[396750164,1765102898796,-164.96790987,4.996e-05,2]
[396750165,1765102901580,-500.0,4.996e-05,2]
[396750166,1765102903234,-173.35100915,4.996e-05,2]
[396750167,1765102907156,8500.01,4.994e-05,2]
[396750168,1765102907177,10000.01,4.994e-05,2]
[396750169,1765102907198,10000.01,4.994e-05,2]
[396750170,1765102907219,10000.01,4.994e-05,2]
[396750171,1765102907240,10000.01,4.994e-05,2]
[396750172,1765102907262,10000.01,4.994e-05,2]
[396750173,1765102907283,10000.01,4.994e-05,2]
[396750174,1765102907305,6938.742482,4.994e-05,2]
[396750175,1765102907742,-167.31219132,4.996e-05,2]
[396750176,1765102911154,-161.57926918,4.996e-05,2]
[396750177,1765102912722,-444.17823799,4.996e-05,2]
[396750178,1765102914865,-280.98237022,4.996e-05,2]
[396750179,1765102916397,-279.69732835,4.996e-05,2]
[396750180,1765102917940,-155.76528857,4.996e-05,2]
[396750181,1765102920109,-384.16943563,4.996e-05,2]
[396750182,1765102924100,-204.81024841,4.996e-05,2]
[396750183,1765102927458,-154.40968752,4.996e-05,2]
[396750184,1765102928898,-189.90532999,4.996e-05,2]
[396750185,1765102932577,-202.34422436,4.996e-05,2]
[396750186,1765102934772,-255.07335924,4.996e-05,2]
[396750187,1765102935858,-201.71712585,4.996e-05,2]
[396750188,1765102937921,-257.62322985,4.996e-05,2]
[396750189,1765102940772,-154.09575476,4.996e-05,2]
[396750190,1765102944259,-170.90701744,4.996e-05,2]
[396750191,1765102945796,-255.9396853,4.996e-05,2]
[396750192,1765102948443,-192.83436738,4.996e-05,2]
[396750205,1765103109887,1200.0,4.995e-05,2]
[396750228,1765103408388,1200.0,4.995e-05,2]
[396750279,1765103438060,-214972.61956334,4.996e-05,2]
[396750281,1765103438073,-45559.22602047,4.996e-05,2]
[396750291,1765103438168,-156715.81177812,4.996e-05,2]
[396750293,1765103438177,-640.96079862,4.997e-05,2]
[396750295,1765103438187,-1099.18263578,5e-05,2]
[396750297,1765103438196,-1099.18263578,5e-05,2]
[396750299,1765103438205,-1099.18263578,5e-05,2]
[396750301,1765103438214,-1099.18263578,5e-05,2]
[396750303,1765103438224,-1099.18263578,5e-05,2]
[396750305,1765103438233,-1099.18263578,5e-05,2]
[396750306,1765103438243,-1099.18263578,5e-05,2]
[396750308,1765103438253,-1099.18263578,5e-05,2]
[396750310,1765103438262,-1099.18263578,5e-05,2]
[396750312,1765103438271,-1099.18263578,5e-05,2]
[396750314,1765103438280,-1099.18263578,5e-05,2]
[396750316,1765103438292,-1099.18263578,5e-05,2]
[396750318,1765103438304,-1099.18263578,5e-05,2]
[396750320,1765103438313,-1099.18263578,5e-05,2]
[396750322,1765103438322,-158.01395327,5e-05,2]
[396750323,1765103438331,-334.11197771,5e-05,2]
[396750325,1765103438341,-4768.04880153,5e-05,2]
[396750327,1765103438351,-4768.04880153,5e-05,2]
[396750329,1765103438360,-4768.04880153,5e-05,2]
[396750331,1765103438369,-4768.04880153,5e-05,2]
[396750333,1765103438378,-4768.04880153,5e-05,2]
[396750335,1765103438387,-4768.04880153,5e-05,2]
[396750337,1765103438396,-4768.04880153,5e-05,2]
[396750339,1765103438406,-4768.04880153,5e-05,2]
[396750341,1765103438415,-4768.04880153,5e-05,2]
[396750342,1765103438425,-4768.04880153,5e-05,2]
[396750344,1765103438435,-4768.04880153,5e-05,2]
[396750346,1765103438444,-292.39362416,5e-05,2]
[396750348,1765103438453,-161.57926918,5e-05,2]
[396750350,1765103438462,-319.32559362,5e-05,2]
[396750352,1765103438471,-2164.39855824,5e-05,2]
[396750354,1765103438481,-220.0,5e-05,2]
[396750356,1765103438490,-2164.39855821,5.022e-05,2]
[396750357,1765103438499,-2164.39855821,5.048e-05,2]
[396750359,1765103438508,-2164.39855821,5.073e-05,2]
[396750361,1765103438518,-250.0,5.095e-05,2]
[396750363,1765103438527,-165.62184648,5.096e-05,2]
[396750365,1765103438536,-152.0,5.096e-05,2]
[396750367,1765103438545,-162.56524225,5.096e-05,2]
[396750369,1765103438555,-156.0,5.096e-05,2]
[396750371,1765103438563,-156.0,5.096e-05,2]
[396750372,1765103438573,-152.0,5.096e-05,2]
[396750374,1765103438581,-156.0,5.096e-05,2]
[396750376,1765103438590,-152.0,5.096e-05,2]
[396750378,1765103438599,-156.0,5.096e-05,2]
[396750380,1765103438608,-152.0,5.096e-05,2]
[396750382,1765103438617,-156.0,5.096e-05,2]
[396750408,1765103438884,-304.91831474,5.096e-05,2]
[396750410,1765103438894,-172.40015308,5.096e-05,2]
[396750412,1765103438904,-156.0,5.096e-05,2]
[396750414,1765103438915,-156.0,5.096e-05,2]
[396750416,1765103438925,-156.0,5.096e-05,2]
[396750418,1765103438935,-166.0,5.096e-05,2]
[396750420,1765103438944,-167.0,5.096e-05,2]
[396750422,1765103438954,-166.0,5.096e-05,2]
[396750424,1765103438965,-167.0,5.096e-05,2]
[396750426,1765103438974,-156.0,5.096e-05,2]
[396750428,1765103438983,-166.0,5.096e-05,2]
[396750429,1765103438994,-167.0,5.096e-05,2]
[396750431,1765103439004,-156.0,5.096e-05,2]
[396750433,1765103439014,-166.0,5.096e-05,2]
[396750435,1765103439023,-167.0,5.096e-05,2]
[396750437,1765103439033,-161.36190608,5.096e-05,2]
[396750439,1765103439043,-152.0,5.096e-05,2]
[396750441,1765103439052,-152.0,5.096e-05,2]
[396750443,1765103439062,-152.0,5.096e-05,2]
[396750445,1765103439071,-152.0,5.096e-05,2]
[396750447,1765103439080,-152.0,5.096e-05,2]
[396750448,1765103439089,-152.0,5.096e-05,2]
[396750450,1765103439099,-334.0,5.096e-05,2]
[396750452,1765103439108,-152.0,5.096e-05,2]
[396750454,1765103439117,-334.0,5.096e-05,2]
[396750456,1765103439126,-152.0,5.096e-05,2]
[396750458,1765103439136,-334.0,5.096e-05,2]
[396750460,1765103439145,-152.0,5.096e-05,2]
[396750462,1765103439155,-334.0,5.096e-05,2]
[396750464,1765103439165,-152.0,5.096e-05,2]
[396750466,1765103439174,-334.0,5.096e-05,2]
[396750468,1765103439183,-152.0,5.096e-05,2]
[396750470,1765103439193,-334.0,5.096e-05,2]
[396750472,1765103439203,-152.0,5.096e-05,2]
[396750473,1765103439212,-334.0,5.096e-05,2]
[396750475,1765103439222,-152.0,5.096e-05,2]
[396750477,1765103439231,-334.0,5.096e-05,2]
[396750479,1765103439240,-152.0,5.096e-05,2]
[396750481,1765103439249,-334.0,5.096e-05,2]
[396750483,1765103439258,-152.0,5.096e-05,2]
[396750485,1765103439267,-334.0,5.096e-05,2]
[396750487,1765103439276,-152.0,5.096e-05,2]
[396750489,1765103439285,-334.0,5.096e-05,2]
[396750491,1765103439294,-152.0,5.096e-05,2]
[396750493,1765103439303,-334.0,5.096e-05,2]
[396750495,1765103439312,-152.0,5.096e-05,2]
[396750496,1765103439321,-334.0,5.096e-05,2]
[396750498,1765103439330,-152.0,5.096e-05,2]
[396750500,1765103439340,-334.0,5.096e-05,2]
[396750502,1765103439349,-334.0,5.096e-05,2]
[396750503,1765103439358,-334.0,5.096e-05,2]
[396750505,1765103439367,-152.0,5.096e-05,2]
[396750507,1765103439378,-334.0,5.096e-05,2]
[396750509,1765103439387,-152.0,5.096e-05,2]
[396750511,1765103439396,-334.0,5.096e-05,2]
[396750513,1765103439405,-249.57395159,5.096e-05,2]
[396750515,1765103439414,-152.0,5.096e-05,2]
[396750517,1765103439423,-152.0,5.096e-05,2]
[396750519,1765103439431,-334.0,5.096e-05,2]
[396750521,1765103439441,-152.0,5.096e-05,2]
[396750523,1765103439450,-180.4962079,5.096e-05,2]
[396750524,1765103439459,-152.0,5.096e-05,2]
[396750526,1765103439468,-253.44846101,5.096e-05,2]
[396750528,1765103439478,-334.0,5.096e-05,2]
[396750530,1765103439487,-152.0,5.096e-05,2]
[396750532,1765103439496,-152.66306936,5.096e-05,2]
[396750534,1765103439505,-152.0,5.096e-05,2]
[396750536,1765103439515,-152.0,5.096e-05,2]
[396750538,1765103439524,-152.0,5.096e-05,2]
[396750540,1765103439533,-166.0,5.096e-05,2]
[396750542,1765103439546,-166.0,5.096e-05,2]
[396750544,1765103439555,-166.61323231,5.096e-05,2]
[396750546,1765103439566,-2164.39855821,5.098e-05,2]
[396750548,1765103439576,-633.64365315,5.195e-05,2]
[396750550,1765103439586,-301.9689207,5.21e-05,2]
[396750552,1765103439595,-303.0224245,5.21e-05,2]
[396750554,1765103439604,-301.9689207,5.21e-05,2]
[396750556,1765103439613,-408.5679766,5.21e-05,2]
[396750557,1765103439622,-407.9854163,5.21e-05,2]
[396750559,1765103439632,-397.3971242,5.21e-05,2]
[396750561,1765103439642,-793.806146,5.21e-05,2]
[396750563,1765103439651,-153.0,5.21e-05,2]
[396750565,1765103439661,-717.740626,5.236e-05,2]
[396750567,1765103439670,-717.740626,5.236e-05,2]
[396750569,1765103439679,-717.740626,5.236e-05,2]
[396750571,1765103439689,-717.740626,5.236e-05,2]
[396750574,1765103439698,-154.437495,5.236e-05,2]
[396750576,1765103439707,-500.0,5.236e-05,2]
[396750578,1765103439717,-151.0,5.236e-05,2]
[396750580,1765103439730,-500.0,5.236e-05,2]
[396750582,1765103439739,-151.0,5.236e-05,2]
[396750585,1765103439748,-151.0,5.236e-05,2]
[396750586,1765103439758,-151.0,5.236e-05,2]
[396750588,1765103439767,-151.0,5.236e-05,2]
[396750590,1765103439776,-151.0,5.236e-05,2]
[396750592,1765103439785,-231.22489385,5.272e-05,2]
[396750594,1765103439795,-178.37640713,5.272e-05,2]
[396750596,1765103439809,-151.96227677,5.272e-05,2]
[396750598,1765103439819,-500.0,5.272e-05,2]
[396750600,1765103439828,-226.23209324,5.272e-05,2]
[396750602,1765103439837,-153.0,5.28e-05,2]
[396750603,1765103439846,-397.3971242,5.28e-05,2]
[396750605,1765103439855,-397.3971244,5.28e-05,2]
[396750607,1765103439864,-794.7942485,5.28e-05,2]
[396750609,1765103439874,-606.2457613,5.28e-05,2]
[396750611,1765103439883,-402.4984063,5.28e-05,2]
[396750613,1765103439892,-402.2207156,5.37e-05,2]
[396750615,1765103439901,-397.3971242,5.37e-05,2]
[396750617,1765103439910,-302.005376,5.37e-05,2]
[396750619,1765103439922,-397.3971244,5.37e-05,2]
[396750620,1765103439932,-537.7211081,5.373e-05,2]
[396750622,1765103439941,-151.0,5.373e-05,2]
[396750624,1765103439950,-500.0,5.373e-05,2]
[396750626,1765103439960,-151.0,5.373e-05,2]
[396750628,1765103439972,-154.04537769,5.373e-05,2]
[396750630,1765103439981,-159.18087234,5.373e-05,2]
[396750632,1765103439990,-151.0,5.373e-05,2]
[396750634,1765103439999,-151.0,5.373e-05,2]
[396750636,1765103440008,-794.7942484,5.38e-05,2]
[396750638,1765103440017,-397.2289264,5.38e-05,2]
[396750640,1765103440028,-500.73364516,5.409e-05,2]
[396750642,1765103440037,-631.0,5.46e-05,2]
[396750644,1765103440046,-2155.0,5.46e-05,2]
[396750646,1765103440055,-1359.0,5.46e-05,2]
[396750648,1765103440064,-415.0,5.46e-05,2]
[396750650,1765103440074,-415.0,5.46e-05,2]
[396750652,1765103440083,-238.64032435,5.476e-05,2]
[396750653,1765103440092,-500.0,5.479e-05,2]
[396750655,1765103440101,-500.0,5.479e-05,2]
[396750657,1765103440110,-500.0,5.479e-05,2]
[396750659,1765103440119,-450.0,5.479e-05,2]
[396750661,1765103440129,-500.0,5.479e-05,2]
[396750663,1765103440138,-500.0,5.479e-05,2]
[396750665,1765103440147,-500.0,5.479e-05,2]
[396750667,1765103440156,-500.0,5.479e-05,2]
[396750669,1765103440165,-500.0,5.479e-05,2]
[396750671,1765103440174,-500.0,5.479e-05,2]
[396750673,1765103440183,-500.0,5.479e-05,2]
[396750675,1765103440192,-500.0,5.479e-05,2]
[396750676,1765103440201,-500.0,5.479e-05,2]
[396750678,1765103440210,-500.0,5.479e-05,2]
[396750679,1765103440219,-396.0495978,5.479e-05,2]
[396750680,1765103440228,-500.0,5.479e-05,2]
[396750681,1765103440237,-500.0,5.479e-05,2]
[396750682,1765103440246,-500.0,5.479e-05,2]
[396750683,1765103440256,-500.0,5.479e-05,2]
[396750684,1765103440265,-500.0,5.479e-05,2]
[396750685,1765103440274,-500.0,5.479e-05,2]
[396750686,1765103440283,-717.740626,5.479e-05,2]
[396750687,1765103440292,-717.740626,5.479e-05,2]
[396750688,1765103440301,-717.740626,5.479e-05,2]
[396750689,1765103440310,-717.740626,5.479e-05,2]
[396750690,1765103440319,-1680.0,5.494e-05,2]
[396750691,1765103440329,-200.97629814,5.51e-05,2]
[396750692,1765103440338,-500.0,5.51e-05,2]
[396750693,1765103440347,-297.07063086,5.51e-05,2]
[396750694,1765103440356,-151.0,5.51e-05,2]
[396750695,1765103440365,-213.56531687,5.51e-05,2]
[396750696,1765103440373,-178286.65981223,5.619e-05,2]
[396750745,1765103441260,-3e-08,5.619e-05,2]
[396750947,1765103443219,-1874.46960627,5.619e-05,2]
[396750951,1765103443231,-19838.87058147,5.619e-05,2]
[396750955,1765103443240,-717.740626,5.619e-05,2]
[396750958,1765103443250,-717.740626,5.619e-05,2]
[396750961,1765103443259,-717.740626,5.619e-05,2]
[396750964,1765103443268,-717.740626,5.619e-05,2]
[396750967,1765103443277,-500.0,5.647e-05,2]
[396750970,1765103443286,-235.15335452,5.647e-05,2]
[396750973,1765103443296,-252.00808786,5.784e-05,2]
[396750976,1765103443305,-257.27817011,5.86e-05,2]
[396750978,1765103443314,-63.01375335,5.88e-05,2]
[396751202,1765103446114,-436.98624665,5.88e-05,2]
[396751204,1765103446124,-2108.41375355,5.905e-05,2]
[396751206,1765103446134,-1417.33906504,5.905e-05,2]
[396751208,1765103446143,-221.58470671,6.019e-05,2]
[396751210,1765103446152,-570.0,6.044e-05,2]
[396751212,1765103446161,-250.0,6.159e-05,2]
[396751214,1765103446171,-202.67194739,6.419e-05,2]
[396751216,1765103446180,-70.7105872,6.5e-05,2]
[396751252,1765103446494,-429.2894128,6.5e-05,2]
[396751254,1765103446503,-153.71,6.585e-05,2]
[396751257,1765103446512,-666.0,6.718e-05,2]
[396751259,1765103446522,-222.0,6.72e-05,2]
[396751261,1765103446532,-555.0,6.794e-05,2]
[396751263,1765103446540,-10000.0,6.849e-05,2]
[396751265,1765103446550,-487.05864518,6.85e-05,2]
[396751267,1765103446558,-200.51930302,6.851e-05,2]
[396751269,1765103446568,-350.08573036,6.859e-05,2]
[396751271,1765103446576,-885.56893215,6.886e-05,3]
[396751272,1765103446586,-630.15431465,6.898e-05,2]
[396751273,1765103446595,-307.42,6.898e-05,2]
[396751274,1765103446604,-161.50484935,6.907e-05,2]
[396751275,1765103446613,-216.63916241,6.914e-05,2]
[396751276,1765103446623,-1672.30573405,6.914e-05,2]
[396751277,1765103446632,-722.41452683,6.914e-05,2]
[396751278,1765103446641,-717.740626,6.915e-05,2]
[396751279,1765103446650,-717.740626,6.915e-05,2]
[396751280,1765103446659,-717.740626,6.915e-05,2]
[396751281,1765103446668,-717.740626,6.915e-05,2]
[396751282,1765103446677,-261.44642244,6.918e-05,2]
[396751284,1765103446686,-298.79591136,6.918e-05,2]
[396751285,1765103446694,-717.54482399,6.918e-05,2]
[396751287,1765103446703,-1291.58068319,6.918e-05,2]
[396751289,1765103446712,-2296.14343677,6.918e-05,2]
[396751291,1765103446722,-331.84851548,6.918e-05,2]
[396751293,1765103446738,-309.81017695,6.918e-05,2]
[396751295,1765103446748,-557.65831851,6.918e-05,2]
[396751297,1765103446758,-991.39256624,6.918e-05,2]
[396751299,1765103446768,-300.49292904,6.93e-05,2]
[396751301,1765103446778,-338.7247192,6.936e-05,2]
[396751303,1765103446787,-1120.27433715,6.937e-05,2]
[396751305,1765103446797,-45.33419872,6.962e-05,3]
[396751307,1765103446809,-366.91748475,6.962e-05,3]
[396751309,1765103446819,-214.58251527,6.967e-05,2]
[396752440,1765103458619,500.0,5e-05,2]
[396752474,1765103458945,500.0,5e-05,2]
[396752506,1765103459252,500.0,5e-05,2]
[396752573,1765103459885,500.0,5e-05,2]
[396752580,1765103459950,520.5474831,5e-05,2]
[396753315,1765103559056,10000.01,4.896e-05,2]
[396753316,1765103559081,10000.01,4.896e-05,2]
[396753317,1765103559106,10000.01,4.896e-05,2]
[396753318,1765103559130,10000.01,4.896e-05,2]
[396753319,1765103559154,10000.01,4.896e-05,2]
[396753320,1765103559178,10000.01,4.896e-05,2]
[396753321,1765103559207,10000.01,4.896e-05,2]
[396753322,1765103559231,10000.01,4.896e-05,2]
[396753323,1765103559254,10000.01,4.896e-05,2]
[396753324,1765103559280,10000.01,4.896e-05,2]
[396753325,1765103584089,-1200.0,4.895e-05,2]
[396753326,1765103584119,-300.0,4.895e-05,2]
[396753328,1765103642633,300.0,4.895e-05,2]
[396753330,1765103702146,300.0,4.895e-05,2]
[396753331,1765103727937,196.313032,6.159e-05,120]
[396753332,1765103822287,300.0,4.895e-05,2]
[396753333,1765103908598,800.0,4.886e-05,2]
[396753334,1765103908629,800.0,4.703e-05,2]
[396753335,1765103908702,800.0,4.795e-05,2]
[396753336,1765103942725,300.0,4.895e-05,2]
[396753337,1765103942818,300.0,4.895e-05,2]
[396753338,1765103968345,800.0,4.681e-05,2]
[396753339,1765103968399,800.0,4.747e-05,2]
[396753342,1765104002522,300.0,4.895e-05,2]
[396753343,1765104002556,300.0,4.895e-05,2]
[396753344,1765104004838,300.0,4.895e-05,2]
[396753345,1765104009009,1200.0,4.895e-05,2]
[396753346,1765104028383,800.0,4.785e-05,2]
[396753347,1765104028440,800.0,4.887e-05,2]
[396753348,1765104088689,800.0,4.819e-05,2]
[396753349,1765104088739,800.0,4.738e-05,2]
[396753350,1765104088918,100.01,4.865e-05,2]
[396753351,1765104088941,699.99,4.865e-05,2]
[396753352,1765104088981,800.0,4.757e-05,2]
[396753353,1765104089028,800.0,4.821e-05,2]
[396753359,1765104148355,800.0,4.811e-05,2]
[396753360,1765104148411,800.0,4.677e-05,2]
[396753361,1765104148510,800.0,4.674e-05,2]
[396753365,1765104269356,724.70947361,4.865e-05,2]
[396753366,1765104381636,-267.30245083,4.896e-05,2]
[396753367,1765104385296,-228.47536908,4.896e-05,2]
[396753368,1765104391170,-173.64931978,4.896e-05,2]
[396753369,1765104392643,-234.38064113,4.896e-05,2]
[396753370,1765104395734,-151.35407933,4.896e-05,2]
[396753371,1765104397652,-206.07956661,4.896e-05,2]
[396753372,1765104400429,-432.49917161,4.896e-05,2]
[396753373,1765104403367,-413.49271773,4.896e-05,2]
[396753374,1765104405536,-169.63592332,4.896e-05,2]
[396753375,1765104408006,-373.65647307,4.896e-05,2]
[396753376,1765104410253,-299.93263803,4.896e-05,2]
[396753377,1765104414388,-300.0,4.896e-05,2]
[396753378,1765104417651,-220.93230947,4.896e-05,2]
[396753379,1765104419684,-383.40567253,4.896e-05,2]
[396753380,1765104421228,-151.99883395,4.896e-05,2]
[396753381,1765104424107,-151.06190433,4.896e-05,2]
[396753382,1765104427121,-353.75255448,4.896e-05,2]
[396753383,1765104431251,-176.24101114,4.896e-05,2]
[396753384,1765104434094,-296.72483496,4.896e-05,2]
[396753385,1765104436855,-214.25074878,4.896e-05,2]
[396753386,1765104439938,-331.07613419,4.896e-05,2]
[396753387,1765104441911,-179.64573251,4.896e-05,2]
[396753388,1765104444791,-256.37505392,4.896e-05,2]
[396753389,1765104445972,-251.55573411,4.896e-05,2]
[396753390,1765104448968,-155.675792,4.896e-05,2]
[396753391,1765104452347,-171.33067736,4.896e-05,2]
[396753392,1765104453875,-378.12062154,4.896e-05,2]
[396753393,1765104456087,-209.39011964,4.896e-05,2]
[396753394,1765104460640,-393.09103063,4.896e-05,2]
[396753395,1765104464086,-152.72,4.896e-05,2]
[396753396,1765104467057,-310.37177522,4.896e-05,2]
[396753397,1765104470406,-306.92937409,4.896e-05,2]
[396753398,1765104475769,-171.33067736,4.896e-05,2]
[396753399,1765104477537,-273.96310253,4.896e-05,2]
[396753400,1765104479215,-225.11979359,4.896e-05,2]
[396753401,1765104481395,-327.99723702,4.896e-05,2]
[396753402,1765104484199,-415.51511385,4.896e-05,2]
[396753403,1765104487981,-153.11672565,4.896e-05,2]
[396753404,1765104490209,-346.88327435,4.896e-05,2]
[396753405,1765104492451,-283.00252879,4.896e-05,2]
[396753406,1765104497837,-151.08,4.896e-05,2]
[396753407,1765104500381,-338.14646607,4.896e-05,2]
[396753408,1765104504229,-234.10469499,4.896e-05,2]
[396753409,1765104506582,-184.05824193,4.896e-05,2]
[396753410,1765104508237,-345.30299252,4.896e-05,2]
[396753411,1765104509755,-154.69700748,4.896e-05,2]
[396753412,1765104513312,-299.44261729,4.896e-05,2]
[396753413,1765104515049,-6190.18326361,4.896e-05,2]
[396753414,1765104515169,-10000.01,4.896e-05,2]
[396753415,1765104515326,-10000.01,4.896e-05,2]
[396753416,1765104517545,-213.89822453,4.896e-05,2]
[396753417,1765104519617,-243.85553354,4.896e-05,2]
[396753418,1765104523088,-10000.01,4.896e-05,2]
[396753419,1765104523119,-185.97267426,4.896e-05,2]
[396753420,1765104523294,-10000.01,4.896e-05,2]
[396753421,1765104523514,-10000.01,4.896e-05,2]
[396753422,1765104523760,-10000.01,4.896e-05,2]
[396753423,1765104524020,-10000.01,4.896e-05,2]
[396753424,1765104525871,-184.26,4.896e-05,2]
[396753425,1765104526345,-10000.01,4.896e-05,2]
[396753426,1765104527659,-10000.01,4.896e-05,2]
[396753427,1765104527807,-160.33203176,4.896e-05,2]
[396753428,1765104530078,-328.66932264,4.896e-05,2]
[396753429,1765104531783,-10000.01,4.896e-05,2]
[396753430,1765104535290,-10000.01,4.896e-05,2]
[396753431,1765104535548,-10000.01,4.896e-05,2]
[396753432,1765104535734,-10000.01,4.896e-05,2]
[396753433,1765104535939,-10000.01,4.896e-05,2]
[396753434,1765104536074,-10000.01,4.896e-05,2]
[396753435,1765104536202,-10000.01,4.896e-05,2]
[396753436,1765104536321,-10000.01,4.896e-05,2]
[396753439,1765104571135,-9809.91183092,4.896e-05,2]
[396753479,1765104602564,300.0,4.795e-05,2]
[396753480,1765104602636,162.0,4.795e-05,2]
[396753488,1765104608939,1200.0,4.795e-05,2]
[396753489,1765104609326,300.0,4.795e-05,2]
[396753533,1765104638351,-406.0,4.796e-05,2]